Workbook

Sheet Slip Water Depth
Q2: Slip Depth Calculator
AK3: Last Reading | AM3: 2018-11-27T07:00:00
D5: index | E5: E | G5: index | K5: index | L5: D | N5: index | R5: index | S5: C | U5: index | Y5: index | Z5: B | AB5: index | AG5: A | AM5: Feet
AL6: Current | AM6: 1421.96
AL7: Level
C8: =D8-AM28 -> 5.8 | D8: 12.84 | E8: E26 | F8: E25 | G8: 12.84 | H8: =G8-AM28 -> 5.8 | J8: =K8-AM28 -> 6.8 | K8: 13.84 | L8: D30 | M8: D29 | N8: 14.34 | O8: =N8-AM28 -> 7.3 | AL8: Rise or | AM8: =AM6-AM25 -> 0.36
C9: =D9-AM28 -> 5.8 | D9: 12.84 | E9: E24 | F9: E23 | G9: 12.84 | H9: =G9-AM28 -> 5.8 | J9: =K9-AM28 -> 6.55 | K9: 13.59 | L9: D28 | M9: D27 | N9: 14.34 | O9: =N9-AM28 -> 7.3 | X9: =Y9-AM28 -> 9.3 | Y9: 16.34 | Z9: B38 | AA9: B37 | AB9: 16.34 | AC9: =AB9-AM28 -> 9.3 | AF9: index | AI9: index | AL9: Fall level
C10: =D10-AM28 -> 5.8 | D10: 12.84 | E10: E22 | F10: E21 | G10: 12.84 | H10: =G10-AM28 -> 5.8 | J10: =K10-AM28 -> 6.55 | K10: 13.59 | L10: D26 | M10: D25 | N10: 14.34 | O10: =N10-AM28 -> 7.3 | Q10: =R10-AM28 -> 8.3 | R10: 15.34 | S10: C34 | T10: C33 | U10: 15.34 | V10: =U10-AM28 -> 8.3 | X10: =Y10-AM28 -> 9.3 | Y10: 16.34 | Z10: B36 | AA10: B35 | AB10: 16.34 | AC10: =AB10-AM28 -> 9.3 | AE10: =AF10-AM28 -> 10.61 | AF10: 17.65 | AG10: A38 | AH10: A37 | AI10: 17.65 | AJ10: =AI10-AM28 -> 10.61
C11: =D11-AM28 -> 5.8 | D11: 12.84 | E11: E20 | F11: E19 | G11: 12.84 | H11: =G11-AM28 -> 5.8 | J11: =K11-AM28 -> 6.8 | K11: 13.84 | L11: D24 | M11: D23 | N11: 14.84 | O11: =N11-AM28 -> 7.8 | Q11: =R11-AM28 -> 8.3 | R11: 15.34 | S11: C32 | T11: C31 | U11: 15.34 | V11: =U11-AM28 -> 8.3 | X11: =Y11-AM28 -> 9.3 | Y11: 16.34 | Z11: B34 | AA11: B33 | AB11: 16.34 | AC11: =AB11-AM28 -> 9.3 | AE11: =AF11-AM28 -> 10.46 | AF11: 17.5 | AG11: A36 | AH11: A35 | AI11: 17.6 | AJ11: =AI11-AM28 -> 10.56
C12: =D12-AM28 -> 5.8 | D12: 12.84 | E12: E18 | F12: E17 | G12: 13.09 | H12: =G12-AM28 -> 6.05 | J12: =K12-AM28 -> 7.3 | K12: 14.34 | L12: D22 | M12: D21 | N12: 14.59 | O12: =N12-AM28 -> 7.55 | Q12: =R12-AM28 -> 8.3 | R12: 15.34 | S12: C30 | T12: C29 | U12: 15.34 | V12: =U12-AM28 -> 8.3 | X12: =Y12-AM28 -> 9.3 | Y12: 16.34 | Z12: B32 | AA12: B31 | AB12: 16.34 | AC12: =AB12-AM28 -> 9.3 | AE12: =AF12-AM28 -> 10.31 | AF12: 17.35 | AG12: A34 | AH12: A33 | AI12: 17.3 | AJ12: =AI12-AM28 -> 10.26
C13: =D13-AM28 -> 5.8 | D13: 12.84 | E13: E16 | F13: E15 | G13: 13.09 | H13: =G13-AM28 -> 6.05 | J13: =K13-AM28 -> 7.4 | K13: 14.44 | L13: D20 | M13: D19 | N13: 14.69 | O13: =N13-AM28 -> 7.65 | Q13: =R13-AM28 -> 8.3 | R13: 15.34 | S13: C28 | T13: C27 | U13: 15.34 | V13: =U13-AM28 -> 8.3 | X13: =Y13-AM28 -> 9.3 | Y13: 16.34 | Z13: B30 | AA13: B29 | AB13: 16.34 | AC13: =AB13-AM28 -> 9.3 | AE13: =AF13-AM28 -> 9.96 | AF13: 17 | AG13: A32 | AH13: A31 | AI13: 17 | AJ13: =AI13-AM28 -> 9.96
C14: =D14-AM28 -> 5.8 | D14: 12.84 | E14: E14 | F14: E13 | G14: 13.09 | H14: =G14-AM28 -> 6.05 | J14: =K14-AM28 -> 7.55 | K14: 14.59 | L14: D18 | M14: D17 | N14: 14.59 | O14: =N14-AM28 -> 7.55 | Q14: =R14-AM28 -> 8.3 | R14: 15.34 | S14: C26 | T14: C25 | U14: 15.34 | V14: =U14-AM28 -> 8.3 | X14: =Y14-AM28 -> 9.3 | Y14: 16.34 | Z14: B28 | AA14: B27 | AB14: 16.34 | AC14: =AB14-AM28 -> 9.3 | AE14: =AF14-AM28 -> 9.61 | AF14: 16.65 | AG14: A30 | AH14: A29 | AI14: 16.6 | AJ14: =AI14-AM28 -> 9.56
C15: =D15-AM28 -> 5.8 | D15: 12.84 | E15: E12 | F15: E11 | G15: 12.84 | H15: =G15-AM28 -> 5.8 | J15: =K15-AM28 -> 7.4 | K15: 14.44 | L15: D16 | M15: D15 | N15: 14.64 | O15: =N15-AM28 -> 7.6 | Q15: =R15-AM28 -> 8.3 | R15: 15.34 | S15: C24 | T15: C23 | U15: 15.34 | V15: =U15-AM28 -> 8.3 | X15: =Y15-AM28 -> 9.3 | Y15: 16.34 | Z15: B26 | AA15: B25 | AB15: 16.34 | AC15: =AB15-AM28 -> 9.3 | AE15: =AF15-AM28 -> 9.61 | AF15: 16.65 | AG15: A28 | AH15: A27 | AI15: 16.6 | AJ15: =AI15-AM28 -> 9.56
C16: =D16-AM28 -> 5.8 | D16: 12.84 | E16: E10 | F16: E09 | G16: 12.84 | H16: =G16-AM28 -> 5.8 | J16: =K16-AM28 -> 7.3 | K16: 14.34 | L16: D14 | M16: D13 | N16: 14.34 | O16: =N16-AM28 -> 7.3 | Q16: =R16-AM28 -> 8.3 | R16: 15.34 | S16: C22 | T16: C21 | U16: 15.34 | V16: =U16-AM28 -> 8.3 | X16: =Y16-AM28 -> 9.3 | Y16: 16.34 | Z16: B24 | AA16: B23 | AB16: 16.34 | AC16: =AB16-AM28 -> 9.3 | AE16: =AF16-AM28 -> 9.56 | AF16: 16.6 | AG16: A26 | AH16: A25 | AI16: 16.6 | AJ16: =AI16-AM28 -> 9.56
C17: =D17-AM28 -> 5.8 | D17: 12.84 | E17: E08 | F17: E07 | G17: 12.84 | H17: =G17-AM28 -> 5.8 | J17: =K17-AM28 -> 7.3 | K17: 14.34 | L17: D12 | M17: D11 | N17: 14.09 | O17: =N17-AM28 -> 7.05 | Q17: =R17-AM28 -> 8.3 | R17: 15.34 | S17: C20 | T17: C19 | U17: 15.34 | V17: =U17-AM28 -> 8.3 | X17: =Y17-AM28 -> 9.3 | Y17: 16.34 | Z17: B22 | AA17: B21 | AB17: 16.34 | AC17: =AB17-AM28 -> 9.3 | AE17: =AF17-AM28 -> 9.31 | AF17: 16.35 | AG17: A24 | AH17: A23 | AI17: 16.35 | AJ17: =AI17-AM28 -> 9.31
D18: 12.59 | E18: E06 | F18: E05 | G18: 12.59 | H18: =G18-AM28 -> 5.55 | J18: =K18-AM28 -> 7.55 | K18: 14.59 | L18: D10 | M18: D09 | N18: 13.09 | O18: =N18-AM28 -> 6.05 | Q18: =R18-AM28 -> 8.3 | R18: 15.34 | S18: C18 | T18: C17 | U18: 15.34 | V18: =U18-AM28 -> 8.3 | X18: =Y18-AM28 -> 9.3 | Y18: 16.34 | Z18: B20 | AA18: B19 | AB18: 16.34 | AC18: =AB18-AM28 -> 9.3 | AE18: =AF18-AM28 -> 9.31 | AF18: 16.35 | AG18: A22 | AH18: A21 | AI18: 16.35 | AJ18: =AI18-AM28 -> 9.31
D19: 12.34 | E19: E04 | F19: E03 | G19: 11.84 | H19: =G19-AM28 -> 4.8 | J19: =K19-AM28 -> 6.1 | K19: 13.14 | L19: D08 | M19: D07 | N19: 13.09 | O19: =N19-AM28 -> 6.05 | Q19: =R19-AM28 -> 8.3 | R19: 15.34 | S19: C16 | T19: C15 | U19: 15.34 | V19: =U19-AM28 -> 8.3 | X19: =Y19-AM28 -> 9.3 | Y19: 16.34 | Z19: B18 | AA19: B17 | AB19: 16.34 | AC19: =AB19-AM28 -> 9.3 | AE19: =AF19-AM28 -> 9.31 | AF19: 16.35 | AG19: A20 | AH19: A19 | AI19: 16.35 | AJ19: =AI19-AM28 -> 9.31
D20: 11.59 | E20: E02 | F20: E01 | G20: 11.59 | H20: =G20-AM28 -> 4.55 | J20: =K20-AM28 -> 6.05 | K20: 13.09 | L20: D06 | M20: D05 | N20: 13.09 | O20: =N20-AM28 -> 6.05 | Q20: =R20-AM28 -> 8.3 | R20: 15.34 | S20: C14 | T20: C13 | U20: 15.09 | V20: =U20-AM28 -> 8.05 | X20: =Y20-AM28 -> 9.3 | Y20: 16.34 | Z20: B16W | AA20: B15W | AB20: 16.34 | AC20: =AB20-AM28 -> 9.3 | AE20: =AF20-AM28 -> 9.31 | AF20: 16.35 | AG20: A18 | AH20: A17 | AI20: 16.35 | AJ20: =AI20-AM28 -> 9.31
J21: =K21-AM28 -> 5.9 | K21: 12.94 | L21: D04 | M21: D03 | N21: 13.09 | O21: =N21-AM28 -> 6.05 | Q21: =R21-AM28 -> 8.1 | R21: 15.14 | S21: C12 | T21: C11 | U21: 14.09 | V21: =U21-AM28 -> 7.05 | X21: =Y21-AM28 -> 9.3 | Y21: 16.34 | Z21: B14W | AA21: B13W | AB21: 16.34 | AC21: =AB21-AM28 -> 9.3 | AE21: =AF21-AM28 -> 9.31 | AF21: 16.35 | AG21: A16W | AH21: A15W | AI21: 16.35 | AJ21: =AI21-AM28 -> 9.31
J22: =K22-AM28 -> 5.55 | K22: 12.59 | L22: D02 | M22: D01 | N22: 12.74 | O22: =N22-AM28 -> 5.7 | Q22: =R22-AM28 -> 7.55 | R22: 14.59 | S22: C10 | T22: C09 | U22: 13.09 | V22: =U22-AM28 -> 6.05 | X22: =Y22-AM28 -> 9.3 | Y22: 16.34 | Z22: B12W | AA22: B11W | AB22: 16.34 | AC22: =AB22-AM28 -> 9.3 | AE22: =AF22-AM28 -> 9.31 | AF22: 16.35 | AG22: A14W | AH22: A13W | AI22: 16.35 | AJ22: =AI22-AM28 -> 9.31
Q23: =R23-AM28 -> 6.1 | R23: 13.14 | S23: C08 | T23: C07 | U23: 13.09 | V23: =U23-AM28 -> 6.05 | X23: =Y23-AM28 -> 8.55 | Y23: 15.59 | Z23: B10W | AA23: B09W | AB23: 15.59 | AC23: =AB23-AM28 -> 8.55 | AE23: =AF23-AM28 -> 9.06 | AF23: 16.1 | AG23: A12W | AH23: A11W | AI23: 16.1 | AJ23: =AI23-AM28 -> 9.06
Q24: =R24-AM28 -> 6.05 | R24: 13.09 | S24: C06 | T24: C05 | U24: 13.09 | V24: =U24-AM28 -> 6.05 | X24: =Y24-AM28 -> 7.8 | Y24: 14.84 | Z24: B08W | AA24: B07W | AB24: 14.84 | AC24: =AB24-AM28 -> 7.8 | AE24: =AF24-AM28 -> 9.06 | AF24: 16.1 | AG24: A10W | AH24: A09W | AI24: 16.1 | AJ24: =AI24-AM28 -> 9.06 | AL24: Flood Level | AM24: 1429
Q25: =R25-AM28 -> 5.9 | R25: 12.94 | S25: C04 | T25: C03 | U25: 13.09 | V25: =U25-AM28 -> 6.05 | X25: =Y25-AM28 -> 7.3 | Y25: 14.34 | Z25: B06 | AA25: B05 | AB25: 14.59 | AC25: =AB25-AM28 -> 7.55 | AE25: =AF25-AM28 -> 8.95 | AF25: 15.99 | AG25: A08W | AH25: A07W | AI25: 16.09 | AJ25: =AI25-AM28 -> 9.05 | AL25: Conservation | AM25: 1421.6
Q26: =R26-AM28 -> 5.55 | R26: 12.59 | S26: C02 | T26: C01 | U26: 12.74 | V26: =U26-AM28 -> 5.7 | X26: =Y26-AM28 -> 6.8 | Y26: 13.84 | Z26: B04 | AA26: B03 | AB26: 14.09 | AC26: =AB26-AM28 -> 7.05 | AE26: =AF26-AM28 -> 8.55 | AF26: 15.59 | AG26: A06 | AH26: A05 | AI26: 15.84 | AJ26: =AI26-AM28 -> 8.8
X27: =Y27-AM28 -> 5.9 | Y27: 12.94 | Z27: B02 | AA27: B01 | AB27: 12.94 | AC27: =AB27-AM28 -> 5.9 | AE27: =AF27-AM28 -> 8.05 | AF27: 15.09 | AG27: A04 | AH27: A03 | AI27: 15.14 | AJ27: =AI27-AM28 -> 8.1
AE28: =AF28-AM28 -> 6.55 | AF28: 13.59 | AG28: A02 | AH28: A01 | AI28: 14.34 | AJ28: =AI28-AM28 -> 7.3 | AM28: =AM24-AM6 -> 7.04
C31: Note: | E31: All depth reading are taken at the bow. | Q31: +/- .1 foot on depth reading
E32: Some slips are shallow at the stern. | Q32: Sips with a W suffix are 13' wide slips
E33: Compensate for your slip. | Q33: All others are 12' wide
C35: In order to use this spreadsheet, please enable macros, save the file to your local drive and reopen it. It will then get the current lake level from the Cheney Lake Level page and update the lake level. Alternativley, you can type in any depth in the Current Level cell (AM6) and it will calculate slip depth based on that elevation. | Q35: Color | S35: Code
S37: Less than 2 feet
S38: 2 to 3 feet
S39: 3 to 5 feet
S40: More than 5 feet
S41: Club Slip - Reserved for NSA use only
